fUST/lending_fUST_20240415
["ID","MTS","AMOUNT","RATE_DAILY","PERIOD"]
[322630480,1713138639600,-500.0,0.00038356,7]
[322630481,1713138639609,-500.0,0.00038356,7]
[322630482,1713138639619,-502.85541641,0.00038356,14]
[322630483,1713138639628,-500.0,0.00038356,7]
[322630484,1713138639637,-1542.45,0.00038356,7]
[322630485,1713138639646,-500.0,0.00038356,7]
[322630486,1713138639655,-628.06593109,0.00038356,7]
[322630487,1713138639664,-500.0,0.00038356,7]
[322630488,1713138639673,-500.0,0.00038356,7]
[322630489,1713138639682,-260.97613995,0.00038356,7]
[322630490,1713138639691,-500.0,0.00038356,7]
[322630491,1713138639700,-192.39090909,0.00038356,7]
[322630492,1713138639709,-500.0,0.00038356,7]
[322630493,1713138639718,-500.0,0.00038356,7]
[322630494,1713138639727,-489.38202878,0.00038356,7]
[322630495,1713138639736,-500.0,0.00038356,7]
[322630496,1713138639745,-500.0,0.00038356,7]
[322630497,1713138639755,-500.0,0.00038356,7]
[322630498,1713138639763,-500.0,0.00038356,7]
[322630499,1713138639773,-500.0,0.00038356,7]
[322630500,1713138639782,-500.0,0.00038356,7]
[322630501,1713138639791,-500.0,0.00038356,7]
[322630502,1713138639802,-503.18,0.00038356,7]
[322630503,1713138639811,-531.60733744,0.00038356,7]
[322630504,1713138639820,-500.0,0.00038356,7]
[322630505,1713138639829,-500.0,0.00038356,7]
[322630506,1713138639838,-500.0,0.00038356,7]
[322630507,1713138639847,-500.0,0.00038356,7]
[322630508,1713138639855,-500.0,0.00038356,7]
[322630509,1713138639864,-500.0,0.00038356,7]
[322630510,1713138639873,-500.0,0.00038356,7]
[322630511,1713138639883,-500.0,0.00038356,7]
[322630512,1713138639892,-500.0,0.00038356,7]
[322630513,1713138639901,-500.0,0.00038356,7]
[322630514,1713138639910,-500.0,0.00038356,7]
[322630515,1713138639919,-500.0,0.00038356,7]
[322630516,1713138639928,-500.0,0.00038356,7]
[322630517,1713138639938,-500.0,0.00038356,7]
[322630518,1713138639948,-500.0,0.00038356,7]
[322630519,1713138639959,-513.10504272,0.00038356,7]
[322630520,1713138639968,-500.0,0.00038356,7]
[322630521,1713138639977,-500.0,0.00038356,7]
[322630522,1713138639986,-500.0,0.00038356,7]
[322630523,1713138639996,-500.0,0.00038356,7]
[322630524,1713138640005,-500.0,0.00038356,7]
[322630525,1713138640014,-500.0,0.00038356,7]
[322630526,1713138640025,-500.0,0.00038356,7]
[322630527,1713138640036,-500.0,0.00038356,7]
[322630528,1713138640046,-500.0,0.00038356,7]
[322630529,1713138640058,-504.16661416,0.00038356,7]
[322630530,1713138640068,-500.0,0.00038356,7]
[322630531,1713138640077,-500.0,0.00038356,7]
[322630532,1713138640087,-500.0,0.00038356,7]
[322630533,1713138640096,-500.0,0.00038356,7]
[322630534,1713138640105,-500.0,0.00038356,7]
[322630536,1713138640114,-500.0,0.00038356,7]
[322630537,1713138640124,-500.0,0.00038356,7]
[322630538,1713138640133,-500.0,0.00038356,7]
[322630539,1713138640142,-500.0,0.00038356,7]
[322630541,1713138640151,-511.27,0.00038356,7]
[322630543,1713138640160,-552.7091046,0.00038356,7]
[322630545,1713138640169,-500.0,0.00038356,7]
[322630547,1713138640179,-500.0,0.00038356,7]
[322630548,1713138640188,-500.0,0.00038356,7]
[322630549,1713138640198,-500.0,0.00038356,7]
[322630550,1713138640207,-500.0,0.00038356,7]
[322630551,1713138640216,-485.93646374,0.00038356,7]
[322630552,1713138640225,-500.0,0.00038356,7]
[322630553,1713138640234,-500.0,0.00038356,7]
[322630554,1713138640243,-500.0,0.00038356,7]
[322630555,1713138640252,-500.0,0.00038356,7]
[322630556,1713138640261,-500.0,0.00038356,7]
[322630557,1713138640270,-500.0,0.00038356,7]
[322630558,1713138640280,-647.86,0.00038356,7]
[322630559,1713138640290,-500.0,0.00038356,7]
[322630560,1713138640305,-500.0,0.00038356,7]
[322630561,1713138640315,-500.0,0.00038356,7]
[322630562,1713138640324,-500.0,0.00038356,7]
[322630563,1713138640335,-500.0,0.00038356,7]
[322630564,1713138640345,-500.0,0.00038356,7]
[322630565,1713138640355,-685.58,0.00038356,7]
[322630566,1713138640364,-500.0,0.00038356,7]
[322630567,1713138640374,-500.0,0.00038356,7]
[322630568,1713138640384,-500.0,0.00038356,7]
[322630569,1713138640394,-500.0,0.00038356,7]
[322630570,1713138640404,-500.0,0.00038356,7]
[322630571,1713138640414,-413.52960305,0.00038356,7]
[322630572,1713138640423,-500.0,0.00038356,7]
[322630573,1713138640432,-500.0,0.00038356,7]
[322630574,1713138640442,-500.0,0.00038356,7]
[322630575,1713138640452,-500.0,0.00038356,7]
[322630576,1713138640462,-212.67886994,0.00038356,7]
[322630577,1713138640471,-500.0,0.00038356,10]
[322630578,1713138640480,-500.0,0.00038356,10]
[322630579,1713138640489,-500.0,0.00038356,10]
[322630580,1713138640498,-500.0,0.00038356,10]
[322630581,1713138640507,-500.0,0.00038356,10]
[322630582,1713138640516,-500.0,0.00038356,7]
[322630583,1713138640526,-500.0,0.00038356,7]
[322630584,1713138640535,-601.8,0.00038356,7]
[322630585,1713138640544,-500.0,0.00038356,7]
[322630586,1713138640558,-619.67,0.00038356,7]
[322630587,1713138640571,-258.36897037,0.00038356,7]
[322630588,1713138640583,-500.0,0.00038356,7]
[322630589,1713138640596,-500.0,0.00038356,7]
[322630590,1713138640608,-178.28,0.00038356,7]
[322630591,1713138640619,-500.0,0.00038356,7]
[322630592,1713138640629,-200.5177822,0.00038356,7]
[322630593,1713138640640,-500.0,0.00038356,7]
[322630594,1713138640652,-500.0,0.00038356,7]
[322630595,1713138640663,-500.0,0.00038356,7]
[322630596,1713138640674,-1054.96,0.00038356,7]
[322630597,1713138640686,-832.12,0.00038356,7]
[322630598,1713138640697,-498.41868532,0.00038356,7]
[322630599,1713138640709,-500.0,0.00038356,7]
[322630600,1713138640720,-6575.62,0.00038356,7]
[322630601,1713138640733,-15564.47,0.00038356,7]
[322630602,1713138640742,-500.0,0.00038356,7]
[322630603,1713138640753,-500.0,0.00038356,7]
[322630604,1713138640765,-175.79838242,0.00038356,7]
[322630605,1713138640776,-569.08,0.00038356,7]
[322630606,1713138640788,-500.0,0.00038356,7]
[322630607,1713138640804,-522.31,0.00038356,7]
[322630608,1713138640816,-500.0,0.00038356,7]
[322630609,1713138640826,-2131.94,0.00038356,7]
[322630610,1713138640839,-500.0,0.00038356,7]
[322630611,1713138640851,-500.0,0.00038356,7]
[322630612,1713138640862,-1105.52,0.00038356,7]
[322630613,1713138640873,-500.0,0.00038356,7]
[322630614,1713138640883,-500.0,0.00038356,7]
[322630615,1713138640897,-710.93,0.00038356,7]
[322630616,1713138640910,-500.0,0.00038356,7]
[322630617,1713138640921,-500.0,0.00038356,7]
[322630620,1713138640934,-3633.99,0.00038356,7]
[322630622,1713138640946,-500.0,0.00038356,7]
[322630624,1713138640960,-500.0,0.00038356,7]
[322630626,1713138640970,-444.3850364,0.00038356,7]
[322630627,1713138640982,-2146.14,0.00038356,7]
[322630628,1713138640995,-500.0,0.00038356,7]
[322630629,1713138641007,-500.0,0.00038356,7]
[322630630,1713138641019,-500.0,0.00038356,7]
[322630631,1713138641031,-500.0,0.00038356,7]
[322630632,1713138641043,-4504.26,0.00038356,7]
[322630633,1713138641057,-2843.17,0.00038356,7]
[322630634,1713138641069,-500.0,0.00038356,7]
[322630635,1713138641081,-500.0,0.00038356,7]
[322630636,1713138641092,-19778.48,0.00038356,7]
[322630637,1713138641102,-2491.41,0.00038356,7]
[322630638,1713138641113,-500.0,0.00038356,7]
[322630639,1713138641123,-500.0,0.00038356,7]
[322630640,1713138641134,-500.0,0.00038356,7]
[322630641,1713138641146,-655.24,0.00038356,7]
[322630642,1713138641158,-500.0,0.00038356,7]
[322630643,1713138641169,-568.14,0.00038356,7]
[322630644,1713138641180,-1770.65,0.00038356,7]
[322630645,1713138641192,-500.0,0.00038356,7]
[322630647,1713138641203,-552.31111648,0.00038356,7]
[322630648,1713138641213,-500.0,0.00038356,7]
[322630649,1713138641224,-500.0,0.00038356,7]
[322630650,1713138641233,-930.76,0.00038356,7]
[322630651,1713138641244,-683.95,0.00038356,7]
[322630652,1713138641255,-1031.91,0.00038356,7]
[322630653,1713138641266,-1000.0,0.00038356,2]
[322630654,1713138641277,-500.0,0.00038356,7]
[322630655,1713138641287,-584.74709342,0.00038356,7]
[322630656,1713138641301,-500.0,0.00038356,7]
[322630657,1713138641312,-500.0,0.00038356,7]
[322630658,1713138641323,-500.0,0.00038356,7]
[322630659,1713138641334,-500.0,0.00038356,7]
[322630660,1713138641344,-500.0,0.00038356,7]
[322630661,1713138641354,-536.02,0.00038356,7]
[322630662,1713138641366,-2402.66,0.00038356,7]
[322630663,1713138641376,-500.0,0.00038356,7]
[322630664,1713138641387,-2078.26,0.00038356,7]
[322630665,1713138641397,-500.0,0.00038356,7]
[322630666,1713138641408,-2201.61,0.00038356,7]
[322630667,1713138641418,-500.0,0.00038356,7]
[322630668,1713138641429,-504.16077056,0.00038356,7]
[322630669,1713138641439,-595.7,0.00038356,7]
[322630670,1713138641450,-41396.87,0.00038356,7]
[322630671,1713138641460,-788.5,0.00038356,7]
[322630672,1713138641471,-558.29,0.00038356,7]
[322630673,1713138641482,-500.0,0.00038356,7]
[322630674,1713138641492,-506.19990765,0.00038356,7]
[322630675,1713138641503,-500.0,0.00038356,7]
[322630676,1713138641513,-500.0,0.00038356,7]
[322630677,1713138641524,-500.0,0.00038356,7]
[322630678,1713138641534,-500.0,0.00038356,7]
[322630679,1713138641544,-500.0,0.00038356,7]
[322630680,1713138641559,-724.82,0.00038356,7]
[322630681,1713138641570,-4371.05,0.00038356,7]
[322630682,1713138641582,-835.28,0.00038356,7]
[322630683,1713138641592,-958.23,0.00038356,7]
[322630684,1713138641603,-2806.22,0.00038356,7]
[322630685,1713138641613,-500.0,0.00038356,7]
[322630686,1713138641624,-501.72300528,0.00038356,7]
[322630687,1713138641634,-500.0,0.00038356,7]
[322630688,1713138641645,-500.0,0.00038356,7]
[322630689,1713138641656,-10094.0,0.00038356,7]
[322630690,1713138641667,-500.0,0.00038356,7]
[322630691,1713138641677,-500.0,0.00038356,7]
[322630692,1713138641687,-2908.51,0.00038356,7]
[322630693,1713138641697,-500.0,0.00038356,7]
[322630694,1713138641708,-501.00546119,0.00038356,7]
[322630695,1713138641718,-500.0,0.00038356,7]
[322630696,1713138641728,-610.44808482,0.00038356,7]
[322630697,1713138641738,-712.93,0.00038356,7]
[322630698,1713138641748,-7770.49,0.00038356,7]
[322630699,1713138641758,-370.34944153,0.00038356,7]
[322630700,1713138641768,-500.0,0.00038356,7]
[322630701,1713138641779,-2313.71,0.00038356,7]
[322630702,1713138641789,-610.46,0.00038356,7]
[322630703,1713138641802,-500.0,0.00038356,7]
[322630704,1713138641812,-500.0,0.00038356,7]
[322630705,1713138641823,-1423.27,0.00038356,7]
[322630706,1713138641833,-2409.82,0.00038356,7]
[322630707,1713138641844,-500.0,0.00038356,7]
[322630708,1713138641854,-500.0,0.00038356,7]
[322630709,1713138641863,-500.0,0.00038356,7]
[322630710,1713138641874,-520.90262697,0.00038356,7]
[322630711,1713138641886,-500.0,0.00038356,7]
[322630712,1713138641898,-4816.39,0.00038356,7]
[322630713,1713138641908,-195.27332935,0.00038356,7]
[322630714,1713138641918,-500.0,0.00038356,7]
[322630715,1713138641928,-500.0,0.00038356,7]
[322630716,1713138641939,-525.0,0.00038356,2]
[322630717,1713138641949,-2525.92366023,0.00038513,4]
[322630718,1713138641961,-162.33940025,0.00038514,2]
[322630719,1713138641970,-346.88621939,0.0003853,2]
[322630720,1713138641979,-3005.26966918,0.0003853,2]
[322630721,1713138641988,-1000.0,0.0003856,2]
[322630722,1713138641997,-500.0,0.00038629,10]
[322630723,1713138642008,-500.0,0.00038629,10]
[322630724,1713138642017,-500.0,0.00038629,10]
[322630725,1713138642184,-500.0,0.00038629,10]
[322630726,1713138642199,-500.0,0.00038629,10]
[322630727,1713138642209,-377.37248519,0.0003863,7]
[322630728,1713138642219,-500.0,0.0003863,7]
[322630729,1713138642228,-500.0,0.0003863,7]
[322630730,1713138642237,-500.0,0.0003863,7]
[322630731,1713138642247,-200.71078306,0.0003863,7]
[322630732,1713138642256,-500.0,0.0003863,7]
[322630733,1713138642265,-500.0,0.0003863,7]
[322630734,1713138642275,-1547.19,0.0003863,7]
[322630735,1713138642285,-500.0,0.0003863,7]
[322630736,1713138642295,-1635.05,0.0003863,7]
[322630737,1713138642306,-500.0,0.0003863,7]
[322630738,1713138642315,-500.0,0.0003863,7]
[322630739,1713138642324,-500.0,0.0003863,7]
[322630740,1713138642333,-500.0,0.0003863,7]
[322630741,1713138642342,-500.0,0.0003863,7]
[322630742,1713138642351,-500.0,0.0003863,7]
[322630743,1713138642361,-500.0,0.0003863,7]
[322630744,1713138642371,-534.54505286,0.0003863,7]
[322630745,1713138642380,-500.0,0.0003863,7]
[322630746,1713138642388,-500.0,0.0003863,7]
[322630747,1713138642397,-488.85023791,0.0003863,7]
[322630748,1713138642406,-500.0,0.0003863,7]
[322630749,1713138642415,-500.0,0.0003863,7]
[322630750,1713138642424,-500.0,0.0003863,7]
[322630751,1713138642434,-214.86003243,0.0003863,7]
[322630752,1713138642443,-500.0,0.0003863,7]
[322630753,1713138642453,-1542.45,0.0003863,7]
[322630754,1713138642462,-500.0,0.0003863,7]
[322630755,1713138642471,-500.0,0.0003863,7]
[322630756,1713138642480,-500.0,0.0003863,7]
[322630757,1713138642489,-500.0,0.0003863,7]
[322630758,1713138642498,-500.0,0.0003863,7]
[322630759,1713138642507,-500.0,0.0003863,7]
[322630760,1713138642516,-191.737708,0.0003863,2]
[322630761,1713138642525,-500.0,0.0003863,7]
[322630762,1713138642535,-151.0,0.0003863,2]
[322630763,1713138642544,-191.737708,0.0003863,2]
[322630764,1713138642555,-500.0,0.0003863,7]
[322630765,1713138642564,-151.0,0.0003863,2]
[322630766,1713138642573,-500.0,0.0003863,7]
[322630767,1713138642583,-500.0,0.0003863,7]
[322630768,1713138642592,-500.0,0.0003863,7]
[322630769,1713138642602,-500.0,0.0003863,7]
[322630770,1713138642611,-503.18,0.0003863,7]
[322630771,1713138642620,-500.0,0.0003863,7]
[322630772,1713138642630,-500.0,0.0003863,7]
[322630773,1713138642640,-500.0,0.0003863,7]
[322630774,1713138642649,-151.0,0.0003863,2]
[322630775,1713138642658,-500.0,0.0003863,7]
[322630776,1713138642667,-500.0,0.0003863,7]
[322630777,1713138642677,-500.0,0.0003863,7]
[322630778,1713138642686,-500.0,0.0003863,7]
[322630779,1713138642695,-500.0,0.0003863,7]
[322630780,1713138642704,-400.0,0.0003863,7]
[322630781,1713138642713,-500.0,0.0003863,7]
[322630782,1713138642722,-500.0,0.0003863,7]
[322630783,1713138642730,-500.0,0.0003863,7]
[322630784,1713138642739,-500.0,0.0003863,7]
[322630785,1713138642749,-500.0,0.0003863,7]
[322630786,1713138642758,-151.0,0.0003863,2]
[322630787,1713138642768,-500.0,0.0003863,7]
[322630788,1713138642777,-500.0,0.0003863,7]
[322630789,1713138642786,-500.0,0.0003863,7]
[322630790,1713138642795,-278.28463039,0.0003863,7]
[322630791,1713138642806,-500.0,0.0003863,7]
[322630792,1713138642816,-500.0,0.0003863,7]
[322630793,1713138642825,-500.0,0.0003863,7]
[322630794,1713138642834,-500.0,0.0003863,7]
[322630795,1713138642843,-500.0,0.0003863,7]
[322630796,1713138642852,-151.0,0.0003863,2]
[322630797,1713138642861,-151.0,0.0003863,2]
[322630798,1713138642870,-505.48298672,0.0003863,7]
[322630799,1713138642878,-500.0,0.0003863,7]
[322630800,1713138642888,-500.0,0.0003863,7]
[322630801,1713138642896,-500.0,0.0003863,7]
[322630802,1713138642905,-500.0,0.0003863,7]
[322630803,1713138642915,-500.0,0.0003863,7]
[322630804,1713138642924,-268.80061848,0.0003863,7]
[322630805,1713138642932,-500.0,0.0003863,7]
[322630806,1713138642942,-500.0,0.0003863,7]
[322630807,1713138642954,-500.0,0.0003863,7]
[322630808,1713138642963,-500.0,0.0003863,7]
[322630809,1713138642973,-523.25980538,0.0003863,7]
[322630810,1713138642982,-647.86,0.0003863,7]
[322630811,1713138642993,-500.0,0.0003863,7]
[322630812,1713138643002,-500.0,0.0003863,7]
[322630813,1713138643011,-500.0,0.0003863,7]
[322630814,1713138643021,-685.58,0.0003863,7]
[322630815,1713138643032,-500.0,0.0003863,7]
[322630816,1713138643041,-500.0,0.0003863,7]
[322630817,1713138643054,-500.0,0.0003863,7]
[322630818,1713138643063,-500.0,0.0003863,7]
[322630819,1713138643072,-500.0,0.0003863,7]
[322630820,1713138643081,-500.0,0.0003863,7]
[322630821,1713138643090,-1806.184915,0.0003863,2]
[322630822,1713138643099,-1806.184915,0.0003863,2]
[322630823,1713138643108,-1806.184915,0.0003863,2]
[322630824,1713138643117,-1806.184915,0.0003863,2]
[322630825,1713138643125,-500.0,0.0003863,7]
[322630826,1713138643135,-500.0,0.0003863,7]
[322630827,1713138643143,-500.0,0.0003863,7]
[322630828,1713138643152,-601.8,0.0003863,7]
[322630830,1713138643161,-500.0,0.0003863,7]
[322630832,1713138643170,-619.67,0.0003863,7]
[322630834,1713138643180,-151.0,0.0003863,2]
[322630836,1713138643189,-151.0,0.0003863,2]
[322630838,1713138643198,-500.0,0.0003863,7]
[322630839,1713138643208,-575.095879,0.0003863,2]
[322630841,1713138643220,-575.095879,0.0003863,2]
[322630843,1713138643230,-514.94946323,0.0003863,7]
[322630845,1713138643241,-575.095879,0.0003863,2]
[322630847,1713138643250,-575.095879,0.0003863,2]
[322630849,1713138643259,-500.0,0.0003863,7]
[322630851,1713138643268,-500.0,0.0003863,7]
[322630853,1713138643278,-500.0,0.0003863,7]
[322630855,1713138643287,-1054.96,0.0003863,7]
[322630857,1713138643296,-832.12,0.0003863,7]
[322630860,1713138643309,-500.0,0.0003863,7]
[322630863,1713138643319,-6575.62,0.0003863,7]
[322630866,1713138643329,-15564.47,0.0003863,7]
[322630870,1713138643338,-500.0,0.0003863,7]
[322630873,1713138643348,-569.08,0.0003863,7]
[322630875,1713138643357,-500.0,0.0003863,7]
[322630877,1713138643366,-522.31,0.0003863,7]
[322630879,1713138643375,-185.44984037,0.0003863,7]
[322630881,1713138643385,-2131.94,0.0003863,7]
[322630882,1713138643394,-500.0,0.0003863,7]
[322630883,1713138643403,-1105.52,0.0003863,7]
[322630884,1713138643413,-500.0,0.0003863,7]
[322630885,1713138643421,-710.93,0.0003863,7]
[322630886,1713138643430,-500.0,0.0003863,7]
[322630887,1713138643440,-500.0,0.0003863,7]
[322630888,1713138643449,-3633.99,0.0003863,7]
[322630889,1713138643459,-151.0,0.0003863,2]
[322630890,1713138643469,-151.0,0.0003863,2]
[322630892,1713138643478,-158.953514,0.0003863,2]
[322630893,1713138643488,-500.0,0.0003863,7]
[322630894,1713138643497,-500.0,0.0003863,7]
[322630895,1713138643506,-2146.14,0.0003863,7]
[322630896,1713138643516,-500.0,0.0003863,7]
[322630897,1713138643525,-500.0,0.0003863,7]
[322630898,1713138643535,-151.0,0.0003863,2]
[322630899,1713138643544,-151.0,0.0003863,2]
[322630900,1713138643555,-151.0,0.0003863,2]
[322630901,1713138643565,-4504.26,0.0003863,7]
[322630903,1713138643574,-2843.17,0.0003863,7]
[322630904,1713138643583,-500.0,0.0003863,7]
[322630905,1713138643593,-648.22858325,0.0003863,7]
[322630906,1713138643603,-19778.48,0.0003863,7]
[322630907,1713138643612,-2491.41,0.0003863,7]
[322630908,1713138643621,-500.0,0.0003863,7]
[322630909,1713138643631,-500.0,0.0003863,7]
[322630910,1713138643640,-655.24,0.0003863,7]
[322630911,1713138643650,-500.0,0.0003863,7]
[322630912,1713138643659,-568.14,0.0003863,7]
[322630913,1713138643669,-1770.65,0.0003863,7]
[322630915,1713138643678,-500.0,0.0003863,7]
[322630916,1713138643687,-500.0,0.0003863,7]
[322630917,1713138643696,-500.0,0.0003863,7]
[322630918,1713138643705,-930.76,0.0003863,7]
[322630919,1713138643714,-683.95,0.0003863,7]
[322630920,1713138643723,-1031.91,0.0003863,7]
[322630921,1713138643732,-1000.0,0.0003863,2]
[322630922,1713138643742,-500.0,0.0003863,7]
[322630923,1713138643752,-151.0,0.0003863,2]
[322630924,1713138643761,-500.0,0.0003863,7]
[322630925,1713138643770,-500.0,0.0003863,7]
[322630926,1713138643779,-500.0,0.0003863,7]
[322630927,1713138643788,-151.0,0.0003863,2]
[322630928,1713138643797,-500.0,0.0003863,7]
[322630929,1713138643808,-160.328021,0.0003863,2]
[322630930,1713138643817,-500.0,0.0003863,7]
[322630931,1713138643827,-536.02,0.0003863,7]
[322630932,1713138643836,-2402.66,0.0003863,7]
[322630933,1713138643845,-500.0,0.0003863,7]
[322630934,1713138643854,-2078.26,0.0003863,7]
[322630935,1713138643863,-500.0,0.0003863,7]
[322630936,1713138643872,-2201.61,0.0003863,7]
[322630937,1713138643881,-500.0,0.0003863,7]
[322630938,1713138643890,-151.0,0.0003863,2]
[322630939,1713138643899,-41396.87,0.0003863,7]
[322630940,1713138643908,-243.79794,0.0003863,2]
[322630941,1713138643918,-788.5,0.0003863,7]
[322630942,1713138643927,-236.94,0.0003863,7]
[322630943,1713138643936,-2286.240595,0.0003863,2]
[322630944,1713138643945,-2286.240595,0.0003863,2]
[322630945,1713138643954,-500.0,0.0003863,7]
[322630946,1713138643966,-2286.240595,0.0003863,2]
[322630947,1713138643975,-2286.240595,0.0003863,2]
[322630948,1713138643984,-500.0,0.0003863,7]
[322630949,1713138643993,-500.0,0.0003863,7]
[322630950,1713138644003,-500.0,0.0003863,7]
[322630951,1713138644012,-231.256013,0.0003863,2]
[322630952,1713138644023,-231.256013,0.0003863,2]
[322630953,1713138644033,-724.82,0.0003863,7]
[322630954,1713138644042,-4371.05,0.0003863,7]
[322630955,1713138644057,-231.256013,0.0003863,2]
[322630956,1713138644066,-231.256013,0.0003863,2]
[322630957,1713138644075,-835.28,0.0003863,7]
[322630958,1713138644085,-204.972938,0.0003863,2]
[322630959,1713138644094,-204.972938,0.0003863,2]
[322630960,1713138644103,-958.23,0.0003863,7]
[322630961,1713138644112,-2662.77233533,0.0003863,7]
[322630962,1713138644221,-143.44766467,0.0003863,7]
[322630963,1713138644232,-500.0,0.0003863,7]
[322630964,1713138644241,-204.972938,0.0003863,2]
[322630965,1713138644250,-204.972938,0.0003863,2]
[322630966,1713138644259,-322.6216621,0.0003863,7]
[322630967,1713138644267,-10094.0,0.0003863,7]
[322630968,1713138644277,-510.97725975,0.0003863,7]
[322630969,1713138644286,-500.0,0.0003863,7]
[322630970,1713138644296,-2908.51,0.0003863,7]
[322630971,1713138644308,-500.0,0.0003863,7]
[322630972,1713138644318,-712.93,0.0003863,7]
[322630973,1713138644327,-230.32505872,0.0003863,7]
[322630982,1713138975929,-161.73972493,0.00022898,2]
[322630983,1713138975951,-154.79876161,0.00022899,2]
[322630984,1713138975974,-413.26180723,0.000229,2]
[322630985,1713138975996,-828.58434459,0.00023,2]
[322630986,1713138976659,-729.80029377,0.00023,2]
[322630987,1713138981159,641.19217376,0.00022897,2]
[322630990,1713139548534,-161.73972493,0.00024994,2]
[322630991,1713139548558,-1495.01395474,0.00024994,2]
[322630992,1713139548581,-225.96625416,0.00024995,2]
[322630993,1713139548604,-156.94520754,0.00025,2]
[322630996,1713139595884,276.90493512,0.00025,2]
[322630997,1713139633129,-154.86062544,0.00025598,2]
[322630998,1713139633150,-160.11753,0.00027397,2]
[322630999,1713139633170,-166.666666,0.00027973,2]
[322631000,1713139633189,-380.0,0.0002811,2]
[322631001,1713139633208,-170.393996,0.00028158,2]
[322631002,1713139633228,-166.666666,0.00028735,2]
[322631003,1713139633251,-300.0,0.0002897,2]
[322631004,1713139633271,-24890.0,0.00028971,2]
[322631005,1713139633294,-166.666666,0.00029498,2]
[322631006,1713139633315,-303.60149311,0.0003026,4]
[322631007,1713139633340,-166.666666,0.00030261,2]
[322631008,1713139633360,-155.21480996,0.00030465,5]
[322631009,1713139633380,-166.666666,0.00031023,2]
[322631010,1713139633400,-2525.92366023,0.00031678,4]
[322631011,1713139633421,-166.666666,0.00031786,2]
[322631012,1713139633440,-420.0,0.00031867,2]
[322631013,1713139633460,-10957.56668612,0.00031995,4]
[322631014,1713139633480,-156.74161626,0.00031998,4]
[322631015,1713139633500,-158.62437047,0.00031998,4]
[322631016,1713139633519,-2122.71055525,0.00031998,4]
[322631017,1713139633539,-1007.23752158,0.00031998,4]
[322631018,1713139633560,-725.45317527,0.00031998,4]
[322631019,1713139633582,-193.14313214,0.00031998,4]
[322631020,1713139633602,-428.78761101,0.00031998,4]
[322631021,1713139633622,-188.68798922,0.00031998,4]
[322631022,1713139633642,-249.16241964,0.00031998,4]
[322631023,1713139633662,-702.6039036,0.00031998,4]
[322631024,1713139633682,-217.16865749,0.00031998,4]
[322631025,1713139633702,-984.04640565,0.00031998,4]
[322631026,1713139633723,-1487.19821628,0.00031998,4]
[322631027,1713139633744,-768.82178493,0.00031998,2]
[322631028,1713139633763,-911.30011037,0.00031999,4]
[322631029,1713139633784,-436.80716267,0.00031999,2]
[322631030,1713139633804,-3140.12037575,0.00032,30]
[322631032,1713139648213,8747.08590743,0.0004233,30]
[322631033,1713139652123,-83096.39034875,0.00032,30]
[322631034,1713139753110,-168.89214366,0.00031945,2]
[322631035,1713139753133,-400.0,0.00031999,2]